Workbook

Sheet Kalkulator
E8: =IF(D12="Pompa Ciepła","* W przypadku braku dostępności - Model i Producent urządzenia może ulec zmianie, na produkt o takich samych parametrach technicznych, po wcześniejszym poinformowaniu i akceptacji klienta oraz PH","") -> * W przypadku braku dostępności - Model i Producent urządzenia może ulec zmianie, na produkt o takich samych parametrach technicznych, po wcześniejszym poinformowaniu i akceptacji klienta oraz PH
C9: ER_Kalkulator_PC_01_05
C10: Klient indywidualny
C12: Rodzaj Źródła Ciepła | D12: Pompa Ciepła | F12: Cena zestawu obejmuje:
C13: Moc obliczeniowa | D13: 0.5 | F13: =IF($E$14="<- Wybierz poprawne źródło ciepła!","", IF($D$12=Baza!$A$2,Baza!E49, IF(AND($D$12=Baza!$A$3,OR(Kalkulator!$D$14=Baza!$D$14,Kalkulator!$D$14=Baza!$D$15,Kalkulator!$D$14=Baza!$D$16)),Baza!E50,Baza!E52))) -> - Pompa Ciepła - materiały montażowe kotłowni - montaż i uruchomienie - zasobnik CWU 300l z grzałką - zbiornik buforowy 200l
C14: Źródło Ciepła | D14: Eco Heat 3Fmono - 16kW | E14: =IF(D12=Baza!A1,"",IF(ISNA(MATCH(D14,_xlfn.ANCHORARRAY(Arkusz1!N3),0)),"<- Wybierz poprawne źródło ciepła!","")) -> 
C15: =Obliczenia!E3 -> Proponowana pompa ciepła | D15: =Obliczenia!E4 -> Eco Heat 1F mono - 6kW
C16: Dopłata do drugiego obiegu | D16: TAK
C18: Wkłady kominowe | D18: TAK
C19: Zasobnik CWU do kotła 200l | D19: TAK
C20: Wymiennik ciepła płytowy, gdy klient chce pozostawić drugie źródło ciepła w układzie otwartym | D20: TAK
C21: Eco Wakacje
F24: Dotacja Czyste Powietrze
F25: TAK
F26: POZIOM DOTACJI
C27: Grzejnik + termostat | D27: 1 | F27: NAJWYŻSZY
C28: Grzejniki + wykonanie CO | D28: 1 | F28: =IF(D33="","",IF(F25="NIE","",(Obliczenia!O3+Obliczenia!O5+Obliczenia!O6))) -> 41450
F29: Ulga Termomodernizacyjna
C30: AUDYT + ŚWIADECTWO DO DOTACJI CZYSTE POWIETRZE | D30: TAK | F30: 0.19 | G30: =IF(D33="","",IF(F28="",D33*F30,(D33-F28)*F30)) -> 6610.21894
C31: Pakiet | D31: STANDARD PLUS
C32: Cena netto | D32: =IF(OR(E16<>"",E14<>""),"",Obliczenia!$C$2) -> 70245.95 | F32: Ilość lat kredytu: | G32: Wpłata własna:
C33: Cena brutto | D33: =IF(D32="","",IF(Obliczenia!$I$3<>"",Obliczenia!$I$3,Obliczenia!$I$4)) -> 76240.626 | F33: 6 | G33: 0
C34: Cena brutto po dotacjach | D34: =IF(D33="","",IF(F28="",(D33-G30),(D33-F28-G30))) -> 28180.40706
C36: MARŻA DODATKOWA | D36: 0

Sheet Raty kredytowe
C9: Inbank - kredyt do 10 lat | F9: Santander - kredyt do 10 lat
C10: Ilość lat | D10: =Kredyt!$J$2 -> 6 | F10: Ilość lat | G10: =Kredyt!$J$3 -> 6
C11: Cena instalacji brutto | D11: =Kredyt!$E$2 -> 76240.626 | F11: Cena instalacji brutto | G11: =Kredyt!$E$3 -> 76240.626
C12: Wkład własny | D12: =Kredyt!$F$2 -> 0 | F12: Wkład własny | G12: =Kredyt!$F$3 -> 0
C13: Kwota kredytu | D13: =Kredyt!$G$2 -> 76240.626 | F13: Kwota kredytu | G13: =Kredyt!$G$3 -> 76240.626
C14: Maksymalna kwota kredytu | D14: 100000 | F14: Maksymalna kwota kredytu | G14: 80000
C15: RATA MIESIĘCZNA | D15: =Kredyt!$M$2 -> 1516.341339 | F15: RATA MIESIĘCZNA | G15: =Kredyt!$M$3 -> 1516.341339

Sheet Kredyt (hidden)
E1: Kwota instalacji | F1: Wkład włany | G1: Kwota kredytu | H1: RRSO | I1: RRSO/m-c | J1: Okres kredytowania | K1: M-c | L1: Rata | M1: Warunki
A2: 2 | D2: Inbank | E2: =Kalkulator!$D$33 -> 76240.626 | F2: =Kalkulator!$G$33 -> 0 | G2: =E2-F2 -> 76240.626 | H2: 0.1284 | I2: =H2/12 -> 0.0107 | J2: =Kalkulator!$F$33 -> 6 | K2: =J2*12 -> 72 | L2: =(G2/K2)+G2*0.006 -> 1516.341339 | M2: =IFERROR(IF(J2=VLOOKUP(J2,A2:A11,1,0),L2,0),"-") -> 1516.341339
A3: 3 | D3: Santander | E3: =Kalkulator!$D$33 -> 76240.626 | F3: =Kalkulator!$G$33 -> 0 | G3: =E3-F3 -> 76240.626 | H3: 0.1284 | I3: =H3/12 -> 0.0107 | J3: =Kalkulator!$F$33 -> 6 | K3: =IFERROR(J3*12,120) -> 72 | L3: =(G3/K3)+G3*0.006 -> 1516.341339 | M3: =IFERROR(IF(J3=VLOOKUP(J3,A2:A7,1,0),L3,0),"-") -> 1516.341339
A4: 4
A5: 5
A6: 6
A7: 83 miesiące
A8: 7
A9: 8
A10: 9
A11: 10

Sheet Obliczenia (hidden)
A1: =Kalkulator!$D$14 -> Eco Heat 3Fmono - 16kW | B1: Cena jednostkowa | C1: Cena dla instalacji | D1: =VLOOKUP(Kalkulator!$D$14,Baza!$D$8:$E$19,2,0) -> 16 | E1: =_xlfn.CONCAT($D$1," kwp") -> 16 kwp | H1: NIE
A2: Rodzaj instalacji | B2: =Kalkulator!$D$12 -> Pompa Ciepła | C2: =SUM(D30,C33:C35) -> 70245.95 | H2: TAK
A3: Źródło Ciepła | B3: =VLOOKUP(Kalkulator!$D$14,Baza!$D$8:$F$19,3,0) -> 39170 | C3: =_xlfn.IFS(Kalkulator!$D$12=Baza!$A$2,VLOOKUP(Kalkulator!$D$14,Baza!$D$8:$F$13,3,0),Kalkulator!$D$12=Baza!$A$3,VLOOKUP(Kalkulator!$D$14,Baza!$D$14:$F$19,3,0)) -> 39170 | E3: =_xlfn.IFS(Baza!A2=Kalkulator!D12,"Proponowana pompa ciepła",Baza!A3=Kalkulator!D12,"Proponowany piec") -> Proponowana pompa ciepła | H3: Klient indywidualny | I3: =IF($H$3=Kalkulator!$C$10,(Obliczenia!$C$2-C28)*1.08+(C28*1.23),"") -> 76240.626 | N3: =Kalkulator!F27 -> NAJWYŻSZY | O3: =_xlfn.IFS(AND(B2=Baza!A2,Obliczenia!N3=Baza!U36),Baza!V24,AND(B2=Baza!A2,Obliczenia!N3=Baza!U37),Baza!V25,AND(B2=Baza!A2,Obliczenia!N3=Baza!U38),Baza!V26,AND(B2=Baza!A3,Obliczenia!N3=Baza!U36),Baza!V27,AND(B2=Baza!A3,Obliczenia!N3=Baza!U37),Baza!V28,AND(B2=Baza!A3,Obliczenia!N3=Baza!U38),Baza!V29) -> 35200
A4: Ilość obiegów grzewczych | B4: =IF(Kalkulator!$D$16="TAK",1925.95,0) -> 1925.95 | C4: =B4 -> 1925.95 | E4: =IF(Kalkulator!D12=Baza!A2,_xlfn.IFS(Kalkulator!D13<Obliczenia!N19,Obliczenia!O19,Kalkulator!D13<Obliczenia!N20,Obliczenia!O20,Kalkulator!D13<Obliczenia!N21,Obliczenia!O21,Kalkulator!D13<Obliczenia!N22,Obliczenia!O22,Kalkulator!D13<Obliczenia!N23,Obliczenia!O23,Kalkulator!D13<Obliczenia!N24,Obliczenia!O24),_xlfn.IFS(AND(Kalkulator!D12=Baza!A3,Baza!D6=Kalkulator!D14,Kalkulator!D13<Obliczenia!N31),Obliczenia!O31,AND(Kalkulator!D12=Baza!A3,Baza!D6=Kalkulator!D14,Kalkulator!D13>Obliczenia!N31),"Potrzebujemy większej mocy pieca",Kalkulator!D13<Obliczenia!N26,Obliczenia!O26,Kalkulator!D13<Obliczenia!N27,Obliczenia!O27,Kalkulator!D13<Obliczenia!N28,Obliczenia!O28,Kalkulator!D13<Obliczenia!N29,Obliczenia!O29)) -> Eco Heat 1F mono - 6kW | H4: Klient biznesowy | I4: =IF($H$4=Kalkulator!$C$10,Obliczenia!$C$2*1.23,"") ->  | O4: =IF(AND(Kalkulator!D26="TAK",Obliczenia!N3=Baza!U36),Baza!W33,IF(AND(Kalkulator!D26="TAK",Obliczenia!N3=Baza!U37),Baza!W34,IF(AND(Kalkulator!D26="TAK",Obliczenia!N3=Baza!U38),Baza!W35,0))) -> 0 | P4: JEŻELI(ORAZ(Kalkulator!D26="TAK";Obliczenia!N3=Baza!U36);Baza!V30;JEŻELI(ORAZ(Kalkulator!D26="TAK";Obliczenia!N3=Baza!U37);Baza!V31;JEŻELI(ORAZ(Kalkulator!D26="TAK";Obliczenia!N3=Baza!U38);Baza!V32;0)))
A5: Armatura | C5: =_xlfn.IFS(Kalkulator!$D$12=Baza!$A$2,Baza!$J$3,Kalkulator!$D$12=Baza!$A$3,Baza!$J$4) -> 0 | H5: 1 | O5: =IF(Obliczenia!$N$3=Baza!U36,Baza!$W$33,IF(Obliczenia!$N$3=Baza!U37,Baza!$W$34,IF(Obliczenia!$N$3=Baza!U38,Baza!$W$35,0))) -> 4650
A6: Montaż | C6: =_xlfn.IFS(Kalkulator!$D$12=Baza!$A$2,Baza!$L$3,Kalkulator!$D$12=Baza!$A$3,Baza!$L$4) -> 0 | H6: 3 | O6: =IF(Obliczenia!$N$3=Baza!U36,Baza!$W$39,IF(Obliczenia!$N$3=Baza!U37,Baza!$W$40,IF(Obliczenia!$N$3=Baza!U38,Baza!$W$41,0))) -> 1600
A7: elektryka | C7: =_xlfn.IFS(Kalkulator!$D$12=Baza!$A$2,Baza!$N$3,Kalkulator!$D$12=Baza!$A$3,Baza!$N$4) -> 0
A8: Sterownik pokojowy bezprzewodowy | B8: =IF(Kalkulator!D27=Obliczenia!$H$2,Baza!V14,0) -> 0 | C8: =B8 -> 0
N18: PC
A19: Wkłady kominowe | B19: =Kalkulator!$D$18 -> TAK | C19: =IF(AND($B$2=Baza!$A$3,Obliczenia!$B$19=$H$2),VLOOKUP(A19,Baza!$U$2:$V$11,2,FALSE),0) -> 0 | N19: 5.6 | O19: Eco Heat 1F mono - 6kW
A20: Zasobnik CWU do kotła 200l | B20: =Kalkulator!$D$19 -> TAK | C20: =IF(AND(Kalkulator!$D$12=Baza!$A$3,B20=H2),VLOOKUP(A20,Baza!$U$2:$V$11,2,FALSE),0) -> 0 | N20: 7.6 | O20: Eco Heat 3F mono - 8kW
A21: Wymiennik ciepła płytowy, gdy klient chce pozostawić drugie źródło ciepła w układzie otwartym | B21: =Kalkulator!$D$20 -> TAK | C21: =IF(B21=H2,VLOOKUP(A21,Baza!$U$2:$V$11,2,FALSE),0) -> 2000 | N21: 9.6 | O21: Eco Heat 3F mono - 10kW
A22: Eco Wakacje | B22: =IF(Kalkulator!D21=Obliczenia!$H$2,VLOOKUP(A22,Baza!$U$2:$V$15,2,FALSE),0) -> 0 | C22: =B22 -> 0 | N22: 11.6 | O22: Eco Heat 3F mono - 12kW
A23: PC do CWU | B23: =IF(Kalkulator!D26=Obliczenia!$H$2,VLOOKUP(A23,Baza!$U$2:$V$15,2,FALSE),0) -> 0 | C23: =B23 -> 0 | N23: 13.6 | O23: Eco Heat 3F mono - 14kW
A24: Grzejnik + termostat | B24: =Kalkulator!D27 -> 1 | C24: =B24*VLOOKUP(A24,Baza!$U$2:$V$10,2,FALSE) -> 1850 | D24: =SUM(C24:C25) -> 4650 | N24: 15.6 | O24: Eco Heat 3Fmono - 16kW
A25: Grzejniki + wykonanie CO | B25: =Kalkulator!D28 -> 1 | C25: =B25*VLOOKUP(A25,Baza!$U$2:$V$10,2,FALSE) -> 2800 | N25: PP
A26: Wykonanie instalacji CWU | B26: =IF(Kalkulator!D29=Obliczenia!$H$2,VLOOKUP(A26,Baza!$U$2:$V$15,2,FALSE),0) -> 0 | C26: =B26 -> 0 | N26: 9.1 | O26: Kocioł na biopellet Ferroli 12 kW
N27: 15.1 | O27: Kocioł na biopellet Ferroli 18 kW
A28: AUDYT + ŚWIADECTWO DO DOTACJI CZYSTE POWIETRZE | B28: =IF(Kalkulator!D30=Obliczenia!$H$2,VLOOKUP(A28,Baza!$U$2:$V$15,2,FALSE),0) -> 2500 | C28: =B28 -> 2500 | N28: 21.1 | O28: Kocioł na biopellet Ferroli 24 kW
A29: Marża EcoRun | B29: =_xlfn.IFS($A$1=Baza!$D$8,Baza!$Q$2,$A$1=Baza!$D$9,Baza!$Q$3,$A$1=Baza!$D$10,Baza!$Q$3,$A$1=Baza!$D$11,Baza!$Q$4,$A$1=Baza!$D$12,Baza!$Q$4,$A$1=Baza!$D$13,Baza!$Q$4,$A$1=VLOOKUP($A$1,Baza!$D$14:$D$19,1,0),Baza!$Q$5) -> 0 | C29: =B29 -> 0 | N29: 27.1 | O29: Kocioł na biopellet Ferroli 24 kW
A30: Marża SupremeEnergy | B30: =_xlfn.IFS($A$1=Baza!$D$8,Baza!$T$2,$A$1=Baza!$D$9,Baza!$T$2,$A$1=Baza!$D$10,Baza!$T$2,$A$1=Baza!$D$11,Baza!$T$3,$A$1=Baza!$D$12,Baza!$T$3,$A$1=Baza!$D$13,Baza!$T$3,$A$1=VLOOKUP($A$1,Baza!$D$14:$D$19,1,0),Baza!$T$4) -> 10000 | C30: =B30 -> 10000 | D30: =SUM(C3:C30) -> 60245.95 | N30: PZ
N31: 11.1 | O31: Kocioł zgazowujący PEREKO 14 kW
A33: Pakiet | B33: =_xlfn.IFS(Kalkulator!D31=Baza!B2,Baza!C2,Kalkulator!D31=Baza!B3,Baza!C3,Kalkulator!D31=Baza!B4,Baza!C4,Kalkulator!D31=Baza!B5,Baza!C5) -> 10000 | C33: =$B$33 -> 10000
A35: Narzut dodany przez handlowca: | B35: =Kalkulator!$D$36 -> 0 | C35: =IF(Kalkulator!$D$31=Baza!$B$2,Obliczenia!$B$35,0) -> 0

Sheet Baza (hidden)
A1: Rodzaj kostrukcji | B1: Marża | D1: Źródło Ciepła | G1: Ilość obiegów grzewczych | I1: Armatura | K1: Montaż | M1: Elektryka | O1: Marża EcoRun | R1: Marża | U1: Koszty dodatkowe | X1: 0.5
A2: Pompa Ciepła | B2: STANDARD PLUS | C2: 10000 | D2: Nazwa | E2: moc [kWp] | F2: Cena netto/moduł [zł] | G2: Nazwa | H2: Cena | I2: Nazwa | J2: Cena | K2: Nazwa | L2: Cena | M2: Nazwa | N2: Cena | O2: 0 | P2: 5 | R2: 0 | S2: 9 | T2: 10000 | U2: Wkłady kominowe | V2: 3000 | X2: 1
A3: Kocioł | B3: STANDARD | C3: 8000 | G3: 1 obieg - 1 - 1 pompa obiegowa | I3: Polipropylen | K3: Montaż PC Polipropylen | M3: elektryka pompa | O3: 5.01 | P3: 9 | R3: 9.01 | S3: 22 | T3: 10000 | U3: Zasobnik CWU do kotła 200l | V3: 2500 | X3: 1.5
B4: RABAT | C4: 6000 | G4: 2 obiegi - 1 - 2 pompy obiegowe | I4: armatura kocioł | K4: Montaż kocioł | M4: elektryka kocioł | O4: 9.01 | P4: 22 | R4: PP | T4: 8000 | U4: Wymiennik ciepła płytowy, gdy klient chce pozostawić drugie źródło ciepła w układzie otwartym | V4: 2000 | X4: 2
B5: MENAGO | C5: 4000 | G5: 1 obieg - 5/4 - 1 pompa obiegowa | O5: PP | U5: Eco Wakacje | V5: 600 | X5: 2.5
G6: 2 obiegi - 5/4 - 2 pompy obiegowe | U6: PC do CWU | V6: 20500 | X6: 3
U7: Grzejnik + termostat | V7: 1850 | X7: 3.5
D8: Eco Heat 1F mono - 6kW | E8: 6 | F8: 28900 | U8: Grzejniki + wykonanie CO | V8: 2800 | X8: 4
D9: Eco Heat 3F mono - 8kW | E9: 8 | F9: 30200 | U9: Wykonanie instalacji CWU | V9: 3500 | X9: 4.5
D10: Eco Heat 3F mono - 10kW | E10: 10 | F10: 30200 | U10: Skarbonka | V10: 500 | X10: 5
D11: Eco Heat 3F mono - 12kW | E11: 12 | F11: 30720 | X11: 5.5
D12: Eco Heat 3F mono - 14kW | E12: 14 | F12: 38520 | X12: 6
D13: Eco Heat 3Fmono - 16kW | E13: 16 | F13: 39170 | X13: 6.5
D14: Kocioł na biopellet 12KW Ferroli | E14: 12 | F14: 20500 | X14: 7
D15: Kocioł na biopellet 18KW Ferroli | E15: 18 | F15: 20500 | U15: AUDYT + ŚWIADECTWO DO DOTACJI CZYSTE POWIETRZE | V15: 2500 | X15: 7.5
D16: Kocioł na biopellet 24KW Ferroli | E16: 24 | F16: 20500 | X16: 8
D17: Ferroli Kocioł zagazowujący drewno CGF PRO 12 | E17: 12 | F17: 26710 | X17: 8.5
D18: Ferroli Kocioł zagazowujący drewno CGF PRO 16 | E18: 16 | F18: 27040 | X18: 9
D19: Ferroli Kocioł zagazowujący drewno CGF PRO 22 | E19: 22 | F19: 28400.8 | X19: 9.5
X20: 10
X21: 10.5
X22: 11
U23: Dotacja Czyste powietrze | X23: 11.5
U24: PC + podstawowy | V24: 14080 | W24: =V24/V26 -> 0.4 | X24: 12
U25: PC + podwyższony | V25: 24640 | W25: =V25/V26 -> 0.7 | X25: 12.5
U26: PC + najwyższy | V26: 35200 | X26: 13
U27: PP + podstawowy | V27: 8200 | W27: =V27/V29 -> 0.4 | X27: 13.5
U28: PP + podwyższony | V28: 14350 | W28: =V28/V29 -> 0.7 | X28: 14
U29: PP + najwyższy | V29: 20500 | X29: 14.5
U30: Co/CWU + podstawowy | V30: 8200 | W30: =V30/V32 -> 0.4 | X30: 15
U31: Co/CWU + podwyższony | V31: 14350 | W31: =V31/V32 -> 0.7 | X31: 15.5
U32: Co/CWU + najwyższy | V32: 20500 | X32: 16
T33: =Obliczenia!D24 -> 4650 | U33: Grzejniki + podstawowy | V33: 8200 | W33: =IF($T$33>V33,V33,$T$33*0.4) -> 1860 | X33: 16.5
U34: Grzejniki + podwyższony | V34: 14350 | W34: =IF($T$33>V34,V34,$T$33*0.7) -> 3255 | X34: 17
U35: Grzejniki + najwyższy | V35: 20500 | W35: =IF($T$33>V35,V35,$T$33) -> 4650 | X35: 17.5
U36: Podstawowy | X36: 18
U37: Podwyższony | X37: 18.5
U38: Najwyższy | X38: 19
U39: AUDYT + ŚWIADECTWO DO DOTACJI CZYSTE POWIETRZE + podstawowy | V39: 640 | W39: =IF(Kalkulator!$D$30=Obliczenia!$H$2,Baza!V39) -> 640 | X39: 19.5
U40: AUDYT + ŚWIADECTWO DO DOTACJI CZYSTE POWIETRZE + podwyższony | V40: 1120 | W40: =IF(Kalkulator!$D$30=Obliczenia!$H$2,Baza!V40) -> 1120 | X40: 20
U41: AUDYT + ŚWIADECTWO DO DOTACJI CZYSTE POWIETRZE + najwyższy | V41: 1600 | W41: =IF(Kalkulator!$D$30=Obliczenia!$H$2,Baza!V41) -> 1600 | X41: 20.5
X42: 21
X43: 21.5
X44: 22
X45: 22.5
X46: 23
X47: 23.5
X48: 24
A49: Pompa Ciepła | B49: - Pompa Ciepła - materiały montażowe kotłowni - montaż i uruchomienie - zasobnik CWU 300l z grzałką - zbiornik buforowy 200l | E49: =_xlfn.UNIQUE(B49) -> - Pompa Ciepła - materiały montażowe kotłowni - montaż i uruchomienie - zasobnik CWU 300l z grzałką - zbiornik buforowy 200l | X49: 24.5
A50: Kocioł na biopellet | B50: - Kocioł na biopellet - materiały montażowe kotłowni - montaż i uruchomienie - wkład kominowy | E50: =_xlfn.UNIQUE(B50&" "&B51) -> - Kocioł na biopellet - materiały montażowe kotłowni - montaż i uruchomienie - wkład kominowy | X50: 25
A51: Zasobnik CWU do kotła 200l | B51: =C51 ->  | C51: =IF(AND(Kalkulator!$D$12=Baza!$A$3,Kalkulator!$D$19="TAK"),"- zasobnik CWU 200l","") -> 
A52: Kocioł zagazowujący drewno | B52: - Kocioł zagazowujący drewno - materiały montażowe kotłowni - montaż i uruchomienie - wkład kominowy | E52: =_xlfn.UNIQUE(B52&" "&B53&" "&B54) -> - Kocioł zagazowujący drewno - materiały montażowe kotłowni - montaż i uruchomienie - wkład kominowy | X52: 25.5
A53: Zbiornik buforowy 800 lub 1000l | B53: =C53 ->  | C53: =IF(AND(Kalkulator!$D$12=Baza!$A$3,Kalkulator!$D$14=Baza!$D$17),"- zbiornik buforowy 500 - 800l",IF(AND(Kalkulator!$D$12=Baza!$A$3,Kalkulator!$D$14=Baza!$D$18),"- zbiornik buforowy 800l",IF(AND(Kalkulator!$D$12=Baza!$A$3,Kalkulator!$D$14=Baza!$D$19),"- zbiornik buforowy 1000l",""))) ->  | X53: 26
A54: Zasobnik CWU do kotła 200l | B54: =C54 ->  | C54: =IF(AND(Kalkulator!$D$12=Baza!$A$3,Kalkulator!$D$19="TAK"),"- zasobnik CWU 200l","") ->  | X54: 26.5
X55: 27
C58: =IF(AND(Kalkulator!$D$12=Baza!$A$3,Kalkulator!$D$14=Baza!$D$17),"- zbiornik buforowy 800l",IF(AND(Kalkulator!$D$12=Baza!$A$3,Kalkulator!$D$14=Baza!$D$18),"- zbiornik buforowy 800l",IF(AND(Kalkulator!$D$12=Baza!$A$3,Kalkulator!$D$14,Baza!$D$19),"- zbornik buforowy 1000l",""))) -> 

Sheet Arkusz1 (hidden)
N2: Rodzaj Źródła Ciepła | Q2: Ilość obiegów grzewczych
D3: Pompa Ciepła | E3: Eco Heat 1F mono - 6kW | F3: 1 obieg - 1 - 1 pompa obiegowa | M3: =Kalkulator!D12 -> Pompa Ciepła | N3: =IF(M3=Baza!A2,_xlfn.UNIQUE(_xlfn._xlws.FILTER(E:E,E:E<>"")),_xlfn.UNIQUE(Baza!D14:D19)) -> Eco Heat 1F mono - 6kW | P3: =Kalkulator!D14 -> Eco Heat 3Fmono - 16kW | Q3: =IF(P3=E14,_xlfn.UNIQUE(F13:F14),IF(P3=E3,_xlfn.UNIQUE(F3:F4),IF(P3=E5,_xlfn.UNIQUE(F5:F6),IF(P3=E7,_xlfn.UNIQUE(F7:F8),IF(P3=E9,_xlfn.UNIQUE(F9:F10),IF(P3=E11,_xlfn.UNIQUE(F11:F12),"")))))) -> 1 obieg - 5/4 - 1 pompa obiegowa
E4: Eco Heat 1F mono - 6kW | F4: 2 obiegi - 1 - 2 pompy obiegowe | N4: Eco Heat 3F mono - 8kW | Q4: 2 obiegi - 5/4 - 2 pompy obiegowe
E5: Eco Heat 3F mono - 8kW | F5: 1 obieg - 1 - 1 pompa obiegowa | N5: Eco Heat 3F mono - 10kW
E6: Eco Heat 3F mono - 8kW | F6: 2 obiegi - 1 - 2 pompy obiegowe | N6: Eco Heat 3F mono - 12kW
E7: Eco Heat 3F mono - 10kW | F7: 1 obieg - 1 - 1 pompa obiegowa | N7: Eco Heat 3F mono - 14kW
E8: Eco Heat 3F mono - 10kW | F8: 2 obiegi - 1 - 2 pompy obiegowe | N8: Eco Heat 3Fmono - 16kW
E9: Eco Heat 3F mono - 12kW | F9: 1 obieg - 5/4 - 1 pompa obiegowa
E10: Eco Heat 3F mono - 12kW | F10: 2 obiegi - 5/4 - 2 pompy obiegowe
E11: Eco Heat 3F mono - 14kW | F11: 1 obieg - 5/4 - 1 pompa obiegowa
E12: Eco Heat 3F mono - 14kW | F12: 2 obiegi - 5/4 - 2 pompy obiegowe
E13: Eco Heat 3Fmono - 16kW | F13: 1 obieg - 5/4 - 1 pompa obiegowa
E14: Eco Heat 3Fmono - 16kW | F14: 2 obiegi - 5/4 - 2 pompy obiegowe
